Cogmind - Beta 17.1 @@@ ROGUE MODE // 2026.09.09 @ 00:31:40 Player: Somberlain Result: Destroyed by as-60266 with Assembled Heavy Rifle Performance ------------- Evolutions (0) 0 Regions Visited (2) 400 Robots Destroyed (20) 100 Value Destroyed (567) 567 Prototype IDs (0) 0 Alien Tech Used (0) 0 Bonus (0) 0 TOTAL SCORE: 1067 Bonus ------- None Cogmind --------- Core Integrity 0/250 Matter 276/300 Energy 250/250 System Corruption 0% Temperature Cool (0) Movement Walking (190) Ox1 Location -10/Mines Parts ------- > --- POWER (1) -------- Ion Engine > --- PROPULSION (2) --- Aluminum Leg Aluminum Leg > --- UTILITY (2) ------ Large Storage Unit Signal Interpreter > --- WEAPON (2) ------- Beam Cannon Beam Cannon > --- INVENTORY (15) --- Improved Heat Sink Medium Storage Unit Sensor Array Core Shielding Beam Cannon Beam Cannon Datajack Hammer Heavy Explosive Trap Heavy Explosive Trap Peak State ------------ > --- POWER ------------ Ion Engine > --- PROPULSION ------- Aluminum Leg Aluminum Leg > --- UTILITY ---------- Medium Storage Unit Signal Interpreter > --- WEAPON ----------- Beam Cannon Hammer > --- INVENTORY -------- Ion Engine Aluminum Leg Aluminum Leg Improved Heat Sink Large Storage Unit Beam Cannon Beam Cannon Beam Cannon [Rating: 8] Favorites ----------- Power Ion Engine Engine Ion Engine Propulsion Aluminum Leg Leg Aluminum Leg Utility Medium Storage Unit Storage Medium Storage Unit Processor Signal Interpreter Weapon Assault Rifle Energy Cannon Beam Cannon Ballistic Gun Assault Rifle Impact Weapon Hammer Build | -11 -10 -10 ------- Run | Yrd Mat Min Slots Evolved . | . . . Power . | . . . Propulsion . | . . . Utility . | . . . Weapon . | . . . Parts Attached 21 | 7 12 2 Power 2 | 1 1 . Engine 2 | 1 1 . Core . | . . . Reactor . | . . . Propulsion 8 | 2 5 1 Treads . | . . . Leg 8 | 2 5 1 Wheel . | . . . Hover . | . . . Flight . | . . . Utility 4 | 1 2 1 Device . | . . . Storage 3 | 1 1 1 Processor 1 | . 1 . Hackware . | . . . Protection . | . . . Artifact . | . . . Weapon 7 | 3 4 . Energy Gun . | . . . Energy Cannon 3 | . 3 . Ballistic Gun 3 | 3 . . Ballistic Cannon . | . . . Launcher . | . . . Special Weapon . | . . . Impact Weapon 1 | . 1 . Slashing Weapon . | . . . Piercing Weapon . | . . . Special Melee Weapon . | . . . Unidentified Prototypes . | . . . Parts Lost 3 | . 2 1 Power 1 | . 1 . Propulsion 2 | . 1 1 Utility . | . . . Weapon . | . . . Highest Loss Streak 2 | . 2 1 To Critical Strikes . | . . . Average Backups 5 | . 5 8 Power . | . . . Propulsion 1 | . 1 . Utility 2 | . 1 4 Weapon 1 | . 1 3 Tool/Special . | . . . Unused Backups 7 | . 1 6 Power . | . . . Propulsion . | . . . Utility 3 | . . 3 Weapon 3 | . 1 2 Tool/Special 1 | . . 1 Average Slot Usage (%) 91 | . 90 99 Engine 13 | . 13 14 Leg 27 | . 27 27 Storage 14 | . 14 14 Processor 6 | . 5 14 Energy Cannon 10 | . 7 28 Ballistic Gun 13 | . 15 . Impact Weapon 4 | . 4 . Peak Build Rating 8 | 6 8 8 Average Rating 6 | 4 6 7 On Entrance 4 | . 6 8 Avg Prop Armor Cover (%) . | . . . Naked Turns . | . . . Heaviest Build 31 | 14 21 31 Greatest Support 20 | 20 20 20 Greatest Overweight (x) 2 | . 2 1 Average Overweight (x) . | . . 1 Largest Inventory Capacity 15 | 8 10 15 Average Capacity 10 | 6 9 12 Most Carried 11 | 1 10 11 Average Carried 6 | . 5 9 Final Capacity 15 | 8 10 15 Final Carried 10 | . 9 10 Class Distribution -------------------- 100% | Mutant Dominant Class ---------------- Mutant | -10/Materials Mutant | -10/Mines Resources | -11 -10 -10 ----------- Run | Yrd Mat Min Matter Collected 765 | 224 541 . Remotely . | . . . Salvage Created 725 | . 725 . Parts 43 | . 43 . Haulers Intercepted 2 | . 2 . Recyclers Shooed . | . . . Parts Field Recycled . | . . . Retrieved Matter . | . . . Parts Self-Destructed . | . . . Prevented . | . . . Parts Restored . | . . . Kills | -11 -10 -10 ------- Run | Yrd Mat Min Combat Hostiles Destroyed 12 | . 12 . Guns 10 | . 10 . Cannons 2 | . 2 . Classes Destroyed 4 | . 4 . Hauler 2 | . 2 . Operator 3 | . 3 . Watcher 3 | . 3 . Grunt 12 | . 12 . Best Kill Streak 3 | . 3 . Combat Bots Only 2 | . 2 . Max Kills in Single Turn 1 | . 1 . Gunslinging . | . . . Exploded . | . . . Melee . | . . . Uniques/NPCs Destroyed . | . . . Combat | -11 -10 -10 -------- Run | Yrd Mat Min Hostile Shots Fired 130 | . 100 30 Missed 49 | . 42 7 Hits 81 | . 58 23 Projectile 81 | . 58 23 Damage Taken 1080 | . 732 348 Core 264 | . 125 139 Absorbed by Shields . | . . . Core Remaining (%) 100 | 100 . . Volleys Fired 81 | . 76 5 Largest 2 | . 2 2 Hottest 120 | . 120 120 Shots Fired 161 | . 151 10 Gun 128 | . 128 . Cannon 33 | . 23 10 Launcher . | . . . Special . | . . . Kinetic 128 | . 128 . Thermal 33 | . 23 10 Explosive . | . . . Electromagnetic . | . . . Robot Hit Streak 8 | . 8 7 Robot Miss Streak 5 | . 5 3 Penetration Max . | . . . Secondary Targets . | . . . Shots Hit Robots 87 | . 83 4 Core Hits 35 | . 33 2 Critical Kills . | . . . Critical Parts Destroyed 3 | . 3 . Critical Strikes 3 | . 3 . Smash 3 | . 3 . Melee Attacks 17 | . 17 . Impact 17 | . 17 . Slashing . | . . . Piercing . | . . . Sneak Attacks 1 | . 1 . Combat Hostiles . | . . . Follow-up Attacks . | . . . Damage Inflicted 1387 | . 1317 70 Guns 858 | . 858 . Cannons 296 | . 226 70 Explosions . | . . . Melee 233 | . 233 . Ramming . | . . . Kinetic 858 | . 858 . Thermal 296 | . 226 70 Explosive . | . . . Electromagnetic . | . . . Impact 233 | . 233 . Slashing . | . . . Piercing . | . . . Highest Corruption . | . . . Average Corruption . | . . . Corruption Purged . | . . . Corruption Blocked . | . . . Overload Shots . | . . . Overflow Damage 134 | . 134 . Projectiles . | . . . Explosions . | . . . Melee 134 | . 134 . Knockbacks . | . . . Impact . | . . . Kinetic . | . . . Secondary . | . . . Self-Inflicted Damage . | . . . Shots . | . . . Rammed . | . . . Targets Rammed . | . . . Kicked . | . . . Crushed . | . . . Highest Temperature 345 | . 345 220 Average Temperature 117 | . 114 126 Received Heat Transfer 417 | . 417 . Effects 6 | . 2 4 Interference 6 | . 2 4 Siege Activations . | . . . Martial Activations . | . . . Shielding Activations . | . . . Robots Disrupted . | . . . Combat Hostiles . | . . . Robots Corrupted 1 | . 1 . Combat Hostiles . | . . . Parts Fried 1 | . 1 . Impact Corruptions 3 | . 3 . Robots Melted . | . . . Combat Hostiles . | . . . Parts Melted . | . . . Heat Transferred 629 | . 481 148 Parts Sabotaged . | . . . Parts Stolen . | . . . Parts Stripped . | . . . Power Chain Reactions . | . . . Alert | -11 -10 -10 ------- Run | Yrd Mat Min Maximum Alert Level . | . . . Low Security (%) 100 | 100 100 100 Level 1 . | . . . Level 2 . | . . . Level 3 . | . . . Level 4 . | . . . Level 5 . | . . . High Security . | . . . Max Security . | . . . Peak Influence 108 | . 108 . Initial . | . . . Average 22 | . 26 . Influence Increases 386 | . 386 . Destroy 0b10 Robot/C 240 | . 240 . Destroy 0b10 Robot/NC 40 | . 40 . Destroy Leader 70 | . 70 . Disable Machine 30 | . 30 . Destroy Structure 6 | . 6 . Influence Decreases 386 | . 383 3 Entered New Map 3 | . . 3 Time Decay 363 | . 363 . Lost Part 20 | . 20 . Squads Dispatched 3 | . 3 . Investigation . | . . . Extermination . | . . . Reinforcement 3 | . 3 . Assault . | . . . Garrison . | . . . Intercept . | . . . Searches Triggered . | . . . Construction Impeded . | . . . Haulers Reinforced . | . . . Active Scanning Responses . | . . . Cargo Convoy Interrupts . | . . . Stealth | -11 -10 -10 --------- Run | Yrd Mat Min Distress Signals 2 | . 2 . Communications Jammed . | . . . Distress Signals . | . . . Times Spotted 27 | . 21 6 Peak Tracking Total 7 | . 3 7 Tactical Retreats 1 | . . 1 Traps | -11 -10 -10 ------- Run | Yrd Mat Min Traps Triggered . | . . . Indirectly . | . . . Trap Hack Attempts . | . . . Triggered . | . . . Disarmed . | . . . Reprogrammed . | . . . Reused . | . . . Traps Extracted . | . . . Installed . | . . . Triggered . | . . . Most Traps Carried 2 | . . 2 Machines | -11 -10 -10 ---------- Run | Yrd Mat Min Machines Disabled 2 | . 2 . Max in Single Turn 1 | . 1 . Machines Repaired . | . . . Machines Dismantled . | . . . Machines Sabotaged . | . . . Overloaded Fab Kills . | . . . Hacking | -11 -10 -10 --------- Run | Yrd Mat Min Machines Accessed 4 | . 4 . Terminals 3 | . 3 . Fabricators . | . . . Repair Stations . | . . . Recycling Units 1 | . 1 . Scanalyzers . | . . . Garrison Access . | . . . Total Hacks 4 | . 4 . Successful 1 | . 1 . Failed 3 | . 3 . Catastrophic 2 | . 2 . Database Lockouts . | . . . Manual 3 | . 3 . Terminals 3 | . 3 . Fabricators . | . . . Repair Stations . | . . . Recycling Units 1 | . 1 . Scanalyzers . | . . . Garrison Access . | . . . Terminal Hacks . | . . . Fabricator Hacks . | . . . Repair Station Hacks . | . . . Recycling Unit Hacks 1 | . 1 . Retrieve Components 1 | . 1 . Scanalyzer . | . . . Garrison Access Hacks . | . . . Unauthorized Hacks . | . . . Terminals . | . . . Fabricators . | . . . Repair Stations . | . . . Recycling Units . | . . . Scanalyzers . | . . . Garrison Access . | . . . Data Cores Recovered . | . . . Used . | . . . Hacking Detections 4 | . 4 . Full Trace Events . | . . . Feedback Events . | . . . Feedback Blocked . | . . . Robot Schematics Acquired . | . . . Robots Built . | . . . Authchips . | . . . Time . | . . . Total Robot Build Rating . | . . . Part Schematics Acquired . | . . . Parts Built . | . . . Authchips . | . . . Time . | . . . Total Part Build Rating . | . . . Part Studies Acquired . | . . . Parts Repaired . | . . . Time . | . . . Parts Recycled . | . . . Recycled Matter . | . . . Retrieved Matter . | . . . Retrieved Components 10 | . 10 . Parts Scanalyzed . | . . . Part Schematics Acquired . | . . . Parts Damaged . | . . . Bothacking | -11 -10 -10 ------------ Run | Yrd Mat Min Used RIF Installer . | . . . Robots Hacked . | . . . Non-combat . | . . . Combat . | . . . Robot Hacks Applied . | . . . Relay Couplers Released . | . . . Fabnet Peak Effective % . | . . . Robots Rewired . | . . . Allies Hacked . | . . . Hacks Repelled . | . . . Allies | -11 -10 -10 -------- Run | Yrd Mat Min Total Allies . | . . . Largest Group . | . . . Highest-Rated Group . | . . . Highest-Rated Ally . | . . . Total Orders . | . . . Ally Attacks . | . . . Total Damage . | . . . Kills . | . . . Allies Corrupted . | . . . Allies Melted . | . . . Intel | -11 -10 -10 ------- Run | Yrd Mat Min Active Infowar (turns) . | . . . Robot Analysis Total . | . . . Derelict Logs Recovered 2 | . . 2 Drone Launches . | . . . Drone Recoveries . | . . . Exploration | -11 -10 -10 ------------- Run | Yrd Mat Min Turns Passed 1596 | 70 1341 185 Spaces Moved 842 | 47 712 83 Core 4 | 4 . . Treads . | . . . Legs 838 | 43 712 83 Wheels . | . . . Hover . | . . . Flight . | . . . Fastest Speed 50 | 50 120 190 Average Speed 135 | 114 131 190 Slowest Speed 260 | 120 260 190 Overloaded Moves . | . . . Propulsion Burnouts . | . . . Robots Hopped . | . . . Potential Cave-ins . | . . . Cave-ins Triggered . | . . . Exploration Rate (%) 36 | 5 81 24 Regions Visited 2 Branch Regions 1 Pre-discovered Areas . | . . . Known Exits Taken 1 | . 1 . Unknown Exits Taken 1 | 1 . . Scrap Searched . | . . . Spaces Dug 3 | . 3 . Terrain Destroyed 3 | . 3 . Melee 3 | . 3 . Projectile . | . . . AOE . | . . . Terrain Rammed . | . . . Walls Destroyed . | . . . Machines Disabled . | . . . Actions | -11 -10 -10 --------- Run | Yrd Mat Min Total 1098 | 60 938 100 Wait 115 | 6 101 8 Move 840 | 46 711 83 Hop . | . . . Pick Up 15 | . 13 2 Fast Attach 8 | 6 2 . Attach 3 | . 2 1 Detach . | . . . Swap 10 | 1 8 1 Drop 9 | 1 8 . Fire 81 | . 76 5 Melee 17 | . 17 . Ram . | . . . Kick . | . . . Crush . | . . . Escape Stasis . | . . . Rewire . | . . . Trap . | . . . Miscellaneous . | . . . Route ------- -11/Scrapyard -10/Materials (discovered 3 exits: *Mat x2 / *Min) -10/Mines (discovered 1 exit: Mat) History --------- Turn | Location | Event 2 | -11/Scrapyard | Discovered new exit (range 16) 71 | -11/Scrapyard | Entered Materials 305 | -10/Materials | Build established: Mutant 562 | -10/Materials | Discovered new exit (range 13) 703 | -10/Materials | Discovered new exit (range 16) 1039 | -10/Materials | Identified exit to Materials 1137 | -10/Materials | Discovered new exit (range 12) 1149 | -10/Materials | Identified exit to Mines 1412 | -10/Materials | Entered Mines 1483 | -10/Mines | Learned Materials garrison access intel 1491 | -10/Mines | Assembled infested the area 1496 | -10/Mines | Assisted by a Guerilla fighting off Assembled 1500 | -10/Mines | Found a hidden stash of uninstalled traps 1567 | -10/Mines | Core integrity fell below 50% 1584 | -10/Mines | Core integrity fell below 20% 1597 | -10/Mines | Destroyed by as-60266 with Assembled Heavy Rifle Last Messages --------------- 01500_ A stash of uninstalled traps is collected here! 01503_ D-53 Grenadier unfolds itself. 01505_ Acquired Heavy Explosive Trap. 01508_ The unstable cave ceiling collapses. 01510_ Acquired Heavy Explosive Trap. 01512_ U-05 Engineer lays Concrete. 01515_ U-05 Engineer builds a Wall. 01516_ as-93681 destroyed. 01520_ U-05 Engineer destroyed. 01526_ R-06 Scavenger collects Med. Matter Pod. 01528_ Acquired derelict log, extracted data. Loading 1 Mines exit... 01528_ as-27120 sneak attacks. 01530_ as-27120 destroyed. 01574_ Aluminum Leg destroyed. 01580_ Overheating: System interference. 01580_ Beam Cannon temporarily disabled. 01582_ Overheating: System interference. 01582_ Signal Interpreter temporarily disabled. Map ----- +----------------------------------------------------+ | ??????????????????## ###??# #???????? | | ??????????????????# ##????###### #???????? | | ?????????#???????## ##??????????# ######### | | ?????????# ????### #???????????# | | ?????????# ??## ##???????????###### ## # | | ????????## ### ##?????????????????# ## # | | ????????# ##?????????????????# ## # | | ????????## #????????????????## ## # | | ????????## #???????????????## & | | ????????# #???????????##### | | ????????# ############# && | | ????????## #### | | ?????????## ############# ## # | | ??????????# #???????????#### ## ## | | ??????????# ##????????????????## ###? | | ??????????# ##?????????????????? #??? | | ??????????## #???????????????????###??? | | ??????????## #????????????????????????? | | ??????##### #????????????????????????? | | ??????# #????????????????????????? | | ??????## ##????????????????????????? | | ???????## #?????????????????????????? | | ????????##### ##aa##????????????????????????? | | ????????????# ## ##???????????????????????? | | ????????????#?# ##??????????????????????? | | ??????????????# @#??????????????????????? | | ??????????????## #?????????????????????? | | ???????????????## #????????????????????? | | ????????????????## #????????????????????? | | ?????????????????## ##????????????????????? | | ??????????????????# #?????????????????????? | | ??????????????????## ##?????????????????????? | | ???????????????????###??????????????????????? | | ????????????????????????????????????????????? | | ????????????????????????????????????????????? | | ????????????????????????????????????????????? | | ????????????????????????????????????????????? | | ????????????????????????????????????????????? | | ????????????????????????????????????????????? | | ????????????????????????????????????????????? | | ????????????????????????????????????????????? | | ????????????????????????????????????????????? | | ????????????????????????????????????????????? | | ????????????????????????????????????????????? | | | | | | | | | | | | | +----------------------------------------------------+ Best States ------------- Heat Dissipation 25 Energy Generation 10 Energy Capacity 250 Matter Stores 300 Matter Capacity 300 Sight Range 16 Terrain Scan Density 10 Evasion (%) 55 Item Schematics ----------------- None Robot Schematics ------------------ None Fabricated ------------ Nothing Repaired ---------- Nothing Studied --------- None Alien Tech Used ----------------- None Achievements -------------- None Challenges ------------ None Game ------ Seed CouplerPointRipper Manual? 0 Play Time 00:09:46 Cumulative 87.7 hours Start 2026.09.09 @ 00:22:52 End 2026.09.09 @ 00:31:40 Sessions 1 Manual Loads 0 Difficulty Rogue Special Mode None Game No. 109 Rogue 109 Adventurer 0 Explorer 0 Win Type - Total 0 Types 0/0/0/0/0/0/0/0/0/0 Lore% 40 Gallery% 43 Achievement% 36 Wizard Run 0 Options --------- Layout 1 ASCII 0 Keyboard 0 Movement Mouse Keybinds 0 Fullscreen 2 Font 24/Smallcaps Map View 50x35 Zoom Use 0% Tactical HUD 1 Map Filters NONE Filters NONE Steam 1 RUN: 9151843f-1fc0-4d78-a634-ce8367ee68a1